fUST/lending_fUST_20240924
["ID","MTS","AMOUNT","RATE_DAILY","PERIOD"]
[339014369,1727125843699,-500.0,0.00032876,30]
[339014370,1727125843708,-500.0,0.00032876,30]
[339014371,1727125843718,-500.0,0.00032876,30]
[339014372,1727125843727,-500.0,0.00032876,30]
[339014373,1727125843737,-500.0,0.00032876,30]
[339014374,1727125843747,-500.0,0.00032876,30]
[339014375,1727125843757,-500.94199245,0.00032876,30]
[339014376,1727125843766,-242.9,0.00032876,30]
[339014377,1727125843775,-368.22584028,0.00032876,30]
[339014378,1727125844238,-24.55946649,0.00032876,30]
[339014387,1727125845771,-17.28837007,0.00032876,30]
[339014400,1727126646347,200.0,0.0002,23]
[339014401,1727126654079,200.0,0.0002,23]
[339014404,1727126826144,-172.8752534,0.00026615,2]
[339014405,1727126826169,-273.087457,0.00027397,2]
[339014406,1727126826191,-300.0,0.00028941,2]
[339014407,1727126826213,-300.0,0.00028941,2]
[339014408,1727126826237,-1231.51218958,0.00028942,2]
[339014409,1727126830140,-4601.68318111,0.00028942,2]
[339014410,1727126833141,-164.17200762,0.00028942,2]
[339014411,1727126834100,-2404.98894002,0.00028942,2]
[339014418,1727126917744,150.999999,0.00023,2]
[339014421,1727126967114,-300.0,0.00026999,2]
[339014422,1727126967135,-500.0,0.00027,2]
[339014423,1727126967156,-500.0,0.00027,2]
[339014424,1727126967177,-500.0,0.00027,2]
[339014425,1727126967198,-500.0,0.00027,2]
[339014426,1727126967219,-1351.12245096,0.000275,30]
[339014427,1727126967250,-1350.71362034,0.000275,30]
[339014443,1727127031920,-622.11384583,0.000275,30]
[339014444,1727127031987,-2709.45394566,0.000275,30]
[339014445,1727127031997,-2722.740238,0.00028935,2]
[339014493,1727127038226,-277.259762,0.00028935,2]
[339014494,1727127038238,-300.0,0.00028941,2]
[339014495,1727127038247,-910.74023824,0.00028942,2]
[339014497,1727127038303,-18.24133418,0.00028942,2]
[339014535,1727127039820,-15568.66210925,0.00028942,2]
[339014537,1727127039830,-202.0361392,0.00029236,2]
[339014539,1727127039839,-176.4527358,0.00029517,2]
[339014541,1727127039847,-157.319064,0.00029874,2]
[339014543,1727127039856,-157.319064,0.00029969,2]
[339014545,1727127039865,-157.319064,0.00030064,2]
[339014547,1727127039875,-157.319064,0.00030159,2]
[339014549,1727127039884,-157.319064,0.00030254,2]
[339014551,1727127039893,-157.319064,0.0003035,2]
[339014553,1727127039902,-157.319064,0.00030445,2]
[339014554,1727127039911,-157.319064,0.0003054,2]
[339014556,1727127039920,-157.319064,0.00030635,2]
[339014559,1727127039930,-157.319064,0.0003073,2]
[339014561,1727127039939,-179.403,0.00031035,28]
[339014563,1727127039948,-420.0,0.00031226,2]
[339014565,1727127039957,-153.0,0.00031833,2]
[339014568,1727127039967,-153.4611108,0.00031833,2]
[339014570,1727127039976,-153.0,0.00031833,2]
[339014572,1727127039985,-153.0,0.00031833,2]
[339014573,1727127039994,-153.0,0.00031833,2]
[339014575,1727127040003,-153.0,0.00031833,2]
[339014577,1727127040013,-153.0,0.00031833,2]
[339014579,1727127040022,-153.0,0.00031878,2]
[339014581,1727127040031,-153.0,0.00031878,2]
[339014583,1727127040041,-153.0,0.00032011,2]
[339014585,1727127040050,-153.0,0.00032011,2]
[339014586,1727127040060,-153.0,0.00032411,2]
[339014588,1727127040069,-500.0,0.00032419,2]
[339014590,1727127040078,-500.0,0.00032419,2]
[339014592,1727127040087,-176.96834613,0.00032419,2]
[339014594,1727127040096,-500.0,0.00032419,2]
[339014596,1727127040105,-324.42066053,0.00032419,2]
[339014598,1727127040115,-175.08073083,0.00032421,120]
[339014599,1727127040125,-153.0,0.00032655,2]
[339014601,1727127040134,-153.0,0.00032655,2]
[339014602,1727127040143,-153.0,0.00032655,2]
[339014603,1727127040153,-1000.0,0.00032766,2]
[339014604,1727127040162,-1963.79977213,0.00032776,2]
[339014605,1727127040171,-150.0,0.000328,2]
[339014606,1727127040180,-165.0558695,0.00032843,2]
[339014607,1727127040189,-155.34027433,0.00032855,2]
[339014608,1727127040198,-184.62162532,0.00032855,2]
[339014609,1727127040207,-500.0,0.00032855,2]
[339014610,1727127040217,-183.08406285,0.00032855,2]
[339014611,1727127040226,-238.88204908,0.00032855,2]
[339014612,1727127040235,-616.72840644,0.00032855,2]
[339014613,1727127040243,-143865.56486312,0.00032856,4]
[339014636,1727127045880,-160.759482,0.00030364,2]
[339014637,1727127045890,-160.759482,0.00030469,2]
[339014638,1727127045899,-160.759482,0.00030575,2]
[339014639,1727127045912,-160.759482,0.0003068,2]
[339014640,1727127045925,-160.759482,0.00030786,2]
[339014641,1727127045938,-160.759482,0.00030891,2]
[339014642,1727127045950,-160.759482,0.00030997,2]
[339014643,1727127045963,-160.759482,0.00031102,2]
[339014644,1727127045974,-160.759482,0.00031208,2]
[339014645,1727127045984,-160.759482,0.00031313,2]
[339014646,1727127045995,-160.759482,0.00031419,2]
[339014647,1727127046007,-160.759482,0.00031524,2]
[339014648,1727127046017,-160.759482,0.0003163,2]
[339014649,1727127046028,-160.759482,0.00031735,2]
[339014650,1727127046040,-3970.25547393,0.00032776,120]
[339014651,1727127046053,-9928.68555888,0.00032856,4]
[339014652,1727127046064,-41376.85775385,0.00032865,4]
[339014653,1727127046126,-267.22099334,0.00032865,4]
[339014690,1727128032116,-275.298436,0.00027397,2]
[339014691,1727128032145,-225.251611,0.00029016,2]
[339014692,1727128032167,-193.912129,0.00029376,2]
[339014693,1727128032190,-189.3178399,0.00029456,2]
[339014694,1727128032212,-300.0,0.00029767,2]
[339014695,1727128032234,-300.0,0.00029767,2]
[339014696,1727128032256,-711.14605706,0.00029768,2]
[339014697,1727128033159,-1787.93940795,0.00029768,2]
[339014699,1727128148121,-369.45905468,0.000292,7]
[339014700,1727128160063,376.7541182,0.00029432,2]
[339014748,1727128238353,-300.0,0.00029767,2]
[339014749,1727128238366,-22400.91453499,0.00029768,2]
[339014750,1727128238379,-168.236427,0.00029875,2]
[339014752,1727128238392,-168.236427,0.00030031,2]
[339014753,1727128238403,-193.912129,0.00030061,2]
[339014755,1727128238413,-168.236427,0.00030187,2]
[339014757,1727128238426,-168.236427,0.00030342,2]
[339014759,1727128238437,-168.236427,0.00030498,2]
[339014761,1727128238449,-168.236427,0.00030654,2]
[339014762,1727128238461,-193.912129,0.00030746,2]
[339014763,1727128238472,-168.236427,0.00030809,2]
[339014764,1727128238483,-168.236427,0.00030965,2]
[339014765,1727128238494,-168.236427,0.00031121,2]
[339014766,1727128238504,-168.236427,0.00031276,2]
[339014767,1727128238515,-168.236427,0.00031432,2]
[339014769,1727128238526,-5000.0,0.00032,3]
[339014770,1727128238538,-420.0,0.0003209,2]
[339014771,1727128238549,-179.403,0.00032273,32]
[339014772,1727128238559,-1000.0,0.00032756,2]
[339014773,1727128238570,-151.44051415,0.00032799,2]
[339014774,1727128238581,-150.0,0.000328,2]
[339014775,1727128238592,-303.3099631,0.00032805,2]
[339014776,1727128238603,-153.0,0.00032805,2]
[339014777,1727128238614,-153.0,0.00032805,2]
[339014778,1727128238625,-153.0,0.00032805,2]
[339014779,1727128238635,-153.0,0.00032805,2]
[339014780,1727128238646,-153.0,0.00032805,2]
[339014781,1727128238657,-153.0,0.00032805,2]
[339014782,1727128238667,-153.0,0.00032805,2]
[339014783,1727128238678,-998.90120867,0.00032854,2]
[339014784,1727128238688,-2017.013358,0.00032855,2]
[339014785,1727128238699,-15056.3363207,0.00032856,5]
[339014786,1727128238710,-194.0,0.0003286,27]
[339014787,1727128238721,-10037.5575471,0.00032866,5]
[339014788,1727128238732,-404.11,0.00032866,3]
[339014789,1727128238742,-304.95802506,0.00032875,2]
[339014790,1727128238754,-12072.69584141,0.00032875,2]
[339014791,1727128238765,-500.0,0.00032875,2]
[339014792,1727128238775,-167.21743436,0.00032875,2]
[339014793,1727128238787,-206.99354924,0.00032875,2]
[339014794,1727128238798,-281.70988451,0.00032875,2]
[339014795,1727128238810,-273.24042785,0.00032876,15]
[339014796,1727128238820,-457.59457214,0.00032876,15]
[339014797,1727128238830,-500.0,0.00032876,10]
[339014798,1727128238841,-263.800864,0.00032876,7]
[339014799,1727128238852,-311.751429,0.00032876,7]
[339014800,1727128238862,-311.751429,0.00032876,7]
[339014801,1727128238873,-311.751429,0.00032876,7]
[339014802,1727128238884,-311.751429,0.00032876,7]
[339014803,1727128238894,-311.751429,0.00032876,7]
[339014804,1727128238906,-311.751429,0.00032876,7]
[339014805,1727128238917,-311.751429,0.00032876,7]
[339014806,1727128238927,-311.751429,0.00032876,7]
[339014807,1727128238937,-151.0,0.00032876,7]
[339014808,1727128238947,-151.0,0.00032876,7]
[339014809,1727128238958,-151.0,0.00032876,7]
[339014810,1727128238969,-151.0,0.00032876,7]
[339014811,1727128238982,-151.0,0.00032876,7]
[339014812,1727128238993,-151.0,0.00032876,7]
[339014813,1727128239004,-500.0,0.00032876,30]
[339014814,1727128239014,-500.0,0.00032876,30]
[339014815,1727128239025,-624.3,0.00032876,30]
[339014816,1727128239036,-571.17241894,0.00032876,30]
[339014817,1727128239046,-511.3743749,0.00032876,30]
[339014818,1727128239057,-500.0,0.00032876,30]
[339014819,1727128239069,-1000.0,0.00032876,30]
[339014820,1727128239079,-500.0,0.00032876,30]
[339014821,1727128239091,-357.05,0.00032876,30]
[339014822,1727128239102,-515.18793046,0.00032876,30]
[339014823,1727128239113,-500.0,0.00032876,30]
[339014824,1727128239124,-500.0,0.00032876,30]
[339014825,1727128239135,-222.17,0.00032876,30]
[339014826,1727128239146,-500.0,0.00032876,30]
[339014827,1727128239156,-517.08453168,0.00032876,30]
[339014828,1727128239167,-500.0,0.00032876,30]
[339014829,1727128239178,-500.0,0.00032876,30]
[339014830,1727128239188,-500.0,0.00032876,30]
[339014831,1727128239199,-500.0,0.00032876,30]
[339014832,1727128239209,-500.0,0.00032876,30]
[339014833,1727128239220,-500.0,0.00032876,30]
[339014834,1727128239230,-500.0,0.00032876,30]
[339014835,1727128239241,-500.0,0.00032876,30]
[339014836,1727128239252,-500.0,0.00032876,30]
[339014837,1727128239263,-500.0,0.00032876,30]
[339014838,1727128239273,-447.04252525,0.00032876,30]
[339014839,1727128239283,-500.0,0.00032876,30]
[339014840,1727128239294,-500.0,0.00032876,30]
[339014841,1727128239305,-500.0,0.00032876,30]
[339014842,1727128239315,-439.11996389,0.00032876,30]
[339014843,1727128239326,-151.0,0.00032876,7]
[339014844,1727128239337,-500.0,0.00032876,30]
[339014845,1727128239347,-500.0,0.00032876,30]
[339014846,1727128239357,-500.0,0.00032876,30]
[339014847,1727128239367,-500.0,0.00032876,30]
[339014848,1727128239377,-500.0,0.00032876,30]
[339014849,1727128239388,-500.0,0.00032876,30]
[339014850,1727128239399,-500.0,0.00032876,30]
[339014851,1727128239410,-500.0,0.00032876,30]
[339014852,1727128239421,-285.79898086,0.00032876,30]
[339014853,1727128239432,-500.0,0.00032876,30]
[339014854,1727128239442,-500.0,0.00032876,30]
[339014855,1727128239453,-151.0,0.00032876,7]
[339014856,1727128239464,-500.0,0.00032876,30]
[339014857,1727128239476,-500.0,0.00032876,30]
[339014858,1727128239487,-500.0,0.00032876,30]
[339014859,1727128239497,-501.26830144,0.00032876,30]
[339014860,1727128239508,-503.78714671,0.00032876,30]
[339014861,1727128239518,-194.68630642,0.00032876,30]
[339014862,1727128239537,-305.31369358,0.00032876,30]
[339014863,1727128239548,-500.0,0.00032876,30]
[339014864,1727128239560,-500.0,0.00032876,30]
[339014866,1727128239571,-500.0,0.00032876,30]
[339014867,1727128239582,-500.0,0.00032876,30]
[339014868,1727128239593,-500.0,0.00032876,30]
[339014869,1727128239604,-351.33630642,0.00032876,30]
[339014881,1727128239990,-148.66369358,0.00032876,30]
[339014882,1727128239999,-500.0,0.00032876,30]
[339014883,1727128240009,-585.89,0.00032876,30]
[339014884,1727128240019,-500.0,0.00032876,30]
[339014885,1727128240028,-500.0,0.00032876,30]
[339014886,1727128240038,-500.0,0.00032876,30]
[339014890,1727128240049,-500.0,0.00032876,30]
[339014891,1727128240297,-500.0,0.00032876,30]
[339014892,1727128240308,-315.25642931,0.00032876,30]
[339014893,1727128240324,-500.0,0.00032876,30]
[339014894,1727128240333,-501.02762435,0.00032876,30]
[339014895,1727128240342,-500.0,0.00032876,30]
[339014896,1727128240351,-500.0,0.00032876,30]
[339014897,1727128240360,-500.0,0.00032876,30]
[339014898,1727128240369,-501.70826868,0.00032876,30]
[339014899,1727128240378,-502.30677793,0.00032876,30]
[339014900,1727128240387,-500.0,0.00032876,30]
[339014901,1727128240397,-502.70761251,0.00032876,30]
[339014902,1727128240406,-162.123407,0.00032876,7]
[339014903,1727128240415,-500.0,0.00032876,30]
[339014904,1727128240425,-500.0,0.00032876,30]
[339014905,1727128240434,-500.0,0.00032876,30]
[339014906,1727128240443,-500.0,0.00032876,30]
[339014907,1727128240451,-500.0,0.00032876,30]
[339014908,1727128240461,-500.0,0.00032876,30]
[339014909,1727128240470,-500.0,0.00032876,30]
[339014910,1727128240479,-500.0,0.00032876,30]
[339014911,1727128240488,-500.0,0.00032876,30]
[339014912,1727128240497,-500.0,0.00032876,30]
[339014913,1727128240507,-500.0,0.00032876,30]
[339014914,1727128240516,-500.0,0.00032876,30]
[339014915,1727128240525,-500.0,0.00032876,30]
[339014916,1727128240534,-500.0,0.00032876,30]
[339014917,1727128240543,-502.98587651,0.00032876,30]
[339014918,1727128240551,-340.51778377,0.00032876,30]
[339014919,1727128240565,-500.0,0.00032876,2]
[339014920,1727128240574,-500.0,0.00032876,30]
[339014921,1727128240582,-500.0,0.00032876,30]
[339014922,1727128240591,-500.0,0.00032876,30]
[339014923,1727128240601,-500.0,0.00032876,30]
[339014924,1727128240610,-500.0,0.00032876,30]
[339014925,1727128240619,-500.0,0.00032876,30]
[339014926,1727128240628,-500.0,0.00032876,30]
[339014927,1727128240638,-500.0,0.00032876,30]
[339014928,1727128240648,-259.924784,0.00032876,7]
[339014929,1727128240657,-500.0,0.00032876,30]
[339014930,1727128240667,-500.0,0.00032876,30]
[339014931,1727128240676,-500.0,0.00032876,30]
[339014932,1727128240686,-500.0,0.00032876,30]
[339014933,1727128240695,-151.0,0.00032876,7]
[339014934,1727128240704,-587.13,0.00032876,30]
[339014935,1727128240713,-151.0,0.00032876,7]
[339014936,1727128240722,-151.0,0.00032876,7]
[339014937,1727128240731,-151.0,0.00032876,7]
[339014938,1727128240741,-151.0,0.00032876,7]
[339014939,1727128240750,-151.0,0.00032876,7]
[339014940,1727128240759,-151.0,0.00032876,7]
[339014941,1727128240768,-500.0,0.00032876,30]
[339014942,1727128240777,-151.0,0.00032876,7]
[339014943,1727128240786,-151.0,0.00032876,7]
[339014944,1727128240795,-151.0,0.00032876,7]
[339014945,1727128240805,-151.0,0.00032876,7]
[339014946,1727128240815,-151.0,0.00032876,7]
[339014947,1727128240825,-151.0,0.00032876,7]
[339014948,1727128240834,-151.0,0.00032876,7]
[339014949,1727128240843,-500.0,0.00032876,30]
[339014950,1727128240852,-500.0,0.00032876,30]
[339014951,1727128240861,-583.83191532,0.00032876,30]
[339014952,1727128240870,-500.0,0.00032876,30]
[339014953,1727128240879,-501.88214129,0.00032876,30]
[339014954,1727128240888,-500.0,0.00032876,30]
[339014955,1727128240897,-194.526018,0.00032876,7]
[339014956,1727128240907,-500.0,0.00032876,30]
[339014957,1727128240916,-500.0,0.00032876,30]
[339014958,1727128240925,-500.0,0.00032876,30]
[339014959,1727128240934,-500.0,0.00032876,5]
[339014960,1727128240943,-475.59453597,0.00032876,30]
[339014961,1727128240952,-606.7,0.00032876,30]
[339014962,1727128240961,-500.0,0.00032876,30]
[339014963,1727128240973,-500.0,0.00032876,30]
[339014964,1727128240983,-151.0,0.00032876,7]
[339014965,1727128240993,-151.0,0.00032876,7]
[339014966,1727128241002,-151.0,0.00032876,7]
[339014967,1727128241012,-182.111929,0.00032876,7]
[339014968,1727128241022,-500.0,0.00032876,30]
[339014969,1727128241031,-500.0,0.00032876,30]
[339014970,1727128241040,-151.0,0.00032876,7]
[339014971,1727128241051,-151.0,0.00032876,7]
[339014972,1727128241060,-151.0,0.00032876,7]
[339014973,1727128241070,-811.74,0.00032876,30]
[339014974,1727128241079,-151.0,0.00032876,7]
[339014975,1727128241088,-151.0,0.00032876,7]
[339014976,1727128241097,-151.0,0.00032876,7]
[339014977,1727128241107,-151.0,0.00032876,7]
[339014978,1727128241116,-151.0,0.00032876,7]
[339014979,1727128241125,-151.0,0.00032876,7]
[339014980,1727128241134,-173.5811,0.00032876,7]
[339014981,1727128241144,-500.0,0.00032876,30]
[339014982,1727128241153,-500.0,0.00032876,30]
[339014983,1727128241163,-500.0,0.00032876,30]
[339014984,1727128241172,-151.0,0.00032876,7]
[339014985,1727128241182,-500.0,0.00032876,30]
[339014986,1727128241191,-500.0,0.00032876,30]
[339014987,1727128241200,-500.0,0.00032876,30]
[339014988,1727128241210,-500.0,0.00032876,30]
[339014989,1727128241221,-500.0,0.00032876,30]
[339014990,1727128241230,-500.0,0.00032876,30]
[339014991,1727128241239,-500.0,0.00032876,30]
[339014992,1727128241248,-500.0,0.00032876,30]
[339014993,1727128241257,-151.0,0.00032876,7]
[339014994,1727128241266,-500.0,0.00032876,30]
[339014995,1727128241276,-247.934056,0.00032876,7]
[339014996,1727128241285,-500.0,0.00032876,30]
[339014997,1727128241294,-500.0,0.00032876,30]
[339014998,1727128241304,-500.0,0.00032876,30]
[339014999,1727128241314,-500.0,0.00032876,30]
[339015000,1727128241323,-500.0,0.00032876,30]
[339015001,1727128241332,-500.0,0.00032876,30]
[339015002,1727128241341,-931.78,0.00032876,30]
[339015003,1727128241350,-500.0,0.00032876,30]
[339015004,1727128241360,-500.0,0.00032876,30]
[339015005,1727128241369,-500.0,0.00032876,30]
[339015006,1727128241378,-500.0,0.00032876,10]
[339015007,1727128241387,-500.0,0.00032876,30]
[339015008,1727128241397,-500.0,0.00032876,30]
[339015009,1727128241406,-500.0,0.00032876,30]
[339015010,1727128241415,-151.0,0.00032876,7]
[339015011,1727128241424,-151.0,0.00032876,7]
[339015012,1727128241433,-151.0,0.00032876,7]
[339015013,1727128241442,-500.0,0.00032876,30]
[339015014,1727128241451,-500.0,0.00032876,30]
[339015015,1727128241461,-500.0,0.00032876,30]
[339015016,1727128241470,-500.0,0.00032876,30]
[339015017,1727128241479,-500.0,0.00032876,30]
[339015018,1727128241489,-434.61695001,0.00032876,30]
[339015019,1727128241498,-500.0,0.00032876,30]
[339015020,1727128241507,-608.98755926,0.00032876,30]
[339015021,1727128241518,-500.0,0.00032876,30]
[339015022,1727128241527,-500.0,0.00032876,30]
[339015023,1727128241537,-151.0,0.00032876,7]
[339015024,1727128241546,-151.0,0.00032876,7]
[339015025,1727128241555,-500.0,0.00032876,30]
[339015026,1727128241566,-151.0,0.00032876,7]
[339015027,1727128241575,-151.0,0.00032876,7]
[339015028,1727128241584,-151.0,0.00032876,7]
[339015029,1727128241593,-500.0,0.00032876,30]
[339015030,1727128241602,-500.0,0.00032876,30]
[339015031,1727128241612,-500.0,0.00032876,30]
[339015032,1727128241621,-500.0,0.00032876,120]
[339015033,1727128241630,-500.0,0.00032876,30]
[339015034,1727128241640,-500.0,0.00032876,30]
[339015035,1727128241650,-500.0,0.00032876,30]
[339015036,1727128241660,-578.15,0.00032876,30]
[339015037,1727128241669,-550.50159571,0.00032876,30]
[339015038,1727128241678,-246.79210262,0.00032876,30]
[339015039,1727128241688,-500.0,0.00032876,30]
[339015040,1727128241697,-500.0,0.00032876,30]
[339015041,1727128241707,-554.396346,0.00032876,2]
[339015042,1727128241716,-500.0,0.00032876,30]
[339015043,1727128241725,-558.543896,0.00032876,30]
[339015044,1727128241734,-500.0,0.00032876,30]
[339015045,1727128241743,-500.0,0.00032876,30]
[339015046,1727128241753,-500.0,0.00032876,30]
[339015047,1727128241762,-500.0,0.00032876,30]
[339015048,1727128241771,-673.12,0.00032876,30]
[339015049,1727128241780,-500.0,0.00032876,30]
[339015050,1727128241789,-500.0,0.00032876,30]
[339015051,1727128241798,-256.88975991,0.00032876,30]
[339015052,1727128241808,-500.0,0.00032876,2]
[339015053,1727128241819,-151.0,0.00032876,7]
[339015054,1727128241828,-500.0,0.00032876,30]
[339015055,1727128241837,-151.0,0.00032876,7]
[339015056,1727128241846,-151.0,0.00032876,7]
[339015057,1727128241855,-151.0,0.00032876,7]
[339015058,1727128241865,-500.0,0.00032876,30]
[339015059,1727128241874,-151.0,0.00032876,7]
[339015060,1727128241883,-224.746888,0.00032876,7]
[339015061,1727128241892,-500.0,0.00032876,30]
[339015062,1727128241902,-500.0,0.00032876,30]
[339015063,1727128241911,-500.0,0.00032876,30]
[339015064,1727128241920,-509.71889624,0.00032876,30]
[339015065,1727128241929,-500.0,0.00032876,30]
[339015066,1727128241938,-500.0,0.00032876,30]
[339015067,1727128241948,-500.0,0.00032876,30]
[339015068,1727128241958,-500.0,0.00032876,30]
[339015069,1727128241967,-500.0,0.00032876,30]
[339015070,1727128241980,-500.0,0.00032876,30]
[339015071,1727128241989,-500.0,0.00032876,30]
[339015072,1727128241998,-500.0,0.00032876,30]
[339015073,1727128242008,-398.00014711,0.00032876,30]
[339015074,1727128242018,-500.0,0.00032876,30]
[339015075,1727128242027,-500.0,0.00032876,30]
[339015076,1727128242036,-500.0,0.00032876,30]
[339015077,1727128242046,-500.0,0.00032876,30]
[339015078,1727128242055,-506.63179636,0.00032876,30]
[339015079,1727128242066,-500.0,0.00032876,30]
[339015080,1727128242075,-151.0,0.00032876,7]
[339015081,1727128242084,-151.0,0.00032876,7]
[339015082,1727128242093,-151.0,0.00032876,7]
[339015083,1727128242103,-151.0,0.00032876,7]
[339015084,1727128242112,-151.0,0.00032876,7]
[339015085,1727128242121,-151.0,0.00032876,7]
[339015086,1727128242130,-151.0,0.00032876,7]
[339015087,1727128242140,-500.0,0.00032876,30]
[339015088,1727128242149,-500.0,0.00032876,30]
[339015089,1727128242158,-500.0,0.00032876,30]
[339015090,1727128242167,-500.0,0.00032876,30]
[339015091,1727128242177,-500.0,0.00032876,30]
[339015092,1727128242187,-600.29419118,0.00032876,30]
[339015093,1727128242196,-500.0,0.00032876,30]
[339015094,1727128242206,-500.0,0.00032876,30]
[339015095,1727128242216,-502.26009317,0.00032876,30]
[339015096,1727128242225,-609.47,0.00032876,30]
[339015097,1727128242234,-500.0,0.00032876,30]
[339015098,1727128242243,-500.98635114,0.00032876,30]
[339015099,1727128242252,-500.0,0.00032876,30]
[339015100,1727128242262,-500.0,0.00032876,30]
[339015101,1727128242271,-500.0,0.00032876,30]
[339015102,1727128242281,-1857.24,0.00032876,30]
[339015103,1727128242290,-500.0,0.00032876,30]
[339015105,1727128242299,-286.101278,0.00032876,7]
[339015106,1727128242308,-500.0,0.00032876,30]
[339015107,1727128242318,-500.0,0.00032876,30]
[339015108,1727128242327,-500.0,0.00032876,30]
[339015109,1727128242336,-1077.9,0.00032876,30]
[339015110,1727128242345,-500.0,0.00032876,30]
[339015111,1727128242355,-500.0,0.00032876,30]
[339015112,1727128242364,-500.0,0.00032876,30]
[339015113,1727128242373,-500.0,0.00032876,30]
[339015114,1727128242383,-500.0,0.00032876,30]
[339015115,1727128242392,-500.0,0.00032876,30]
[339015116,1727128242402,-817.51,0.00032876,30]
[339015117,1727128242411,-500.0,0.00032876,30]
[339015118,1727128242421,-500.0,0.00032876,30]
[339015119,1727128242431,-500.0,0.00032876,30]
[339015120,1727128242440,-1090.33,0.00032876,2]
[339015121,1727128242450,-509.39515591,0.00032876,30]
[339015122,1727128242460,-650.0,0.00032876,30]
[339015123,1727128242470,-500.0,0.00032876,30]
[339015124,1727128242479,-151.0,0.00032876,7]
[339015125,1727128242489,-151.0,0.00032876,7]
[339015127,1727128242498,-151.0,0.00032876,7]
[339015128,1727128242508,-500.0,0.00032876,30]
[339015129,1727128242518,-151.0,0.00032876,7]
[339015130,1727128242527,-500.0,0.00032876,30]
[339015131,1727128242537,-151.0,0.00032876,7]
[339015132,1727128242547,-151.0,0.00032876,7]
[339015133,1727128242557,-151.0,0.00032876,7]
[339015134,1727128242567,-151.0,0.00032876,7]
[339015135,1727128242576,-151.0,0.00032876,7]
[339015136,1727128242585,-290.449581,0.00032876,7]
[339015137,1727128242595,-500.0,0.00032876,30]
[339015138,1727128242605,-500.0,0.00032876,30]
[339015139,1727128242614,-500.0,0.00032876,30]
[339015140,1727128242624,-500.0,0.00032876,30]
[339015141,1727128242634,-500.0,0.00032876,30]
[339015142,1727128242643,-500.0,0.00032876,30]
[339015143,1727128242653,-500.0,0.00032876,30]
[339015144,1727128242662,-569.63,0.00032876,30]
[339015145,1727128242672,-500.0,0.00032876,30]
[339015146,1727128242681,-500.0,0.00032876,30]
[339015148,1727128242690,-500.0,0.00032876,30]
[339015149,1727128242700,-500.0,0.00032876,30]
[339015151,1727128242709,-294.994439,0.00032876,7]
[339015152,1727128242719,-500.0,0.00032876,30]
[339015154,1727128242728,-500.0,0.00032876,30]
[339015155,1727128242737,-500.0,0.00032876,30]
[339015156,1727128242746,-500.0,0.00032876,7]
[339015157,1727128242755,-500.0,0.00032876,30]
[339015158,1727128242765,-500.0,0.00032876,30]
[339015159,1727128242775,-1000.0,0.00032876,120]
[339015161,1727128242784,-200.994686,0.00032876,7]
[339015162,1727128242794,-500.0,0.00032876,30]
[339015163,1727128242803,-200.994686,0.00032876,7]